bitfinex/quotes_BTCUSD_20251024
["timestamp","ask_amount","ask_price","bid_price","bid_amount"]
[1761292544255,0.35199999,110970.0,110960.0,0.18314816]
[1761292544461,0.17099999,110970.0,110960.0,0.52818151]
[1761292544642,0.18099998,110970.0,110960.0,0.52818151]
[1761292545609,0.18099998,110970.0,110960.0,0.21948904]
[1761292546030,0.48969245,110970.0,110960.0,0.21948904]
[1761292546239,0.18099998,110970.0,110960.0,0.21948904]
[1761292547505,0.48969245,110970.0,110960.0,0.21948904]
[1761292548122,0.48969245,110970.0,110960.0,0.18314816]
[1761292548952,0.48969245,110970.0,110960.0,0.00290303]
[1761292549161,0.66992134,110970.0,110960.0,0.00290303]
[1761292549375,1.00992134,110970.0,110960.0,0.00290303]
[1761292550449,0.70122887,110970.0,110960.0,0.00290303]
[1761292550653,1.00992134,110970.0,110960.0,0.00290303]
[1761292551202,1.02925231,110970.0,110960.0,0.00290303]
[1761292553411,1.11907132,110970.0,110960.0,0.00290303]
[1761292554376,1.24507261,110970.0,110960.0,0.00290303]
[1761292555001,1.55376508,110970.0,110960.0,0.00290303]
[1761292555383,1.57792191,110970.0,110960.0,0.00290303]
[1761292555836,0.96053697,110970.0,110960.0,0.00290303]
[1761292556049,1.26922944,110970.0,110960.0,0.00290303]
[1761292558407,1.17941043,110970.0,110960.0,0.00290303]
[1761292559367,1.4881029,110970.0,110960.0,0.00290303]
[1761292559612,1.17941043,110970.0,110960.0,0.00290303]
[1761292561196,0.87071796,110970.0,110960.0,0.00290303]
[1761292561416,1.17941043,110970.0,110960.0,0.00290303]
[1761292562187,0.87071796,110970.0,110960.0,0.00290303]
[1761292562414,0.71171796,110970.0,110960.0,0.00290303]
[1761292562583,0.98422815,110970.0,110960.0,0.00290303]
[1761292562790,1.14322815,110970.0,110960.0,0.00290303]
[1761292564498,0.92435469,110970.0,110960.0,0.00290303]
[1761292564708,1.52031201,110970.0,110960.0,0.00290303]
[1761292564915,1.52320922,110970.0,110960.0,0.00290303]
[1761292566121,1.52120922,110970.0,110960.0,0.00290303]
[1761292566323,1.52220922,110970.0,110960.0,0.00290303]
[1761292566503,1.61202823,110970.0,110960.0,0.00290303]
[1761292566715,1.9207207,110970.0,110960.0,0.00290303]
[1761292566942,1.93882299,110970.0,110960.0,0.00290303]
[1761292568679,2.00713843,110970.0,110960.0,0.00290303]
[1761292569546,1.69844596,110970.0,110960.0,0.00290303]
[1761292569761,2.00713843,110970.0,110960.0,0.00290303]
[1761292570581,1.93882299,110970.0,110960.0,0.00290303]
[1761292571091,2.00773295,110970.0,110960.0,0.00290303]
[1761292571542,1.69904048,110970.0,110960.0,0.00290303]
[1761292571724,2.00773295,110970.0,110960.0,0.00290303]
[1761292571926,1.69904048,110970.0,110960.0,0.00290303]
[1761292574751,2.00773295,110970.0,110960.0,0.00290303]
[1761292575802,2.0167217,110970.0,110960.0,0.00290303]
[1761292576564,2.0157217,110970.0,110960.0,0.00290303]
[1761292576761,2.0137217,110970.0,110960.0,0.00290303]
[1761292576914,2.0167217,110970.0,110960.0,0.00290303]
[1761292578065,2.0177217,110970.0,110960.0,0.00290303]
[1761292579491,1.9694103,110970.0,110960.0,0.00290303]
[1761292580983,1.66071783,110970.0,110960.0,0.00290303]
[1761292581955,1.9694103,110970.0,110960.0,0.00290303]
[1761292583201,1.8104103,110970.0,110960.0,0.00290303]
[1761292583412,1.8744381,110970.0,110960.0,0.00290303]
[1761292583823,2.0333981,110970.0,110960.0,0.00290303]
[1761292584036,2.0910781,110970.0,110960.0,0.00290303]
[1761292586681,1.8744381,110970.0,110960.0,0.00290303]
[1761292586866,2.0910781,110970.0,110960.0,0.00290303]
[1761292587074,1.8744381,110970.0,110960.0,0.00290303]
[1761292587277,2.0333981,110970.0,110960.0,0.00290303]
[1761292587432,0.18030146,110930.0,110910.0,0.49798749]
[1761292587640,0.16895999,110920.0,110910.0,0.49847362]
[1761292587998,0.00999999,110920.0,110910.0,0.49847362]
[1761292588662,0.00999999,110920.0,110910.0,0.19078115]
[1761292588843,0.00999999,110920.0,110910.0,0.18181252]
[1761292589693,0.00999999,110920.0,110910.0,0.49050499]
[1761292589954,0.01099999,110920.0,110910.0,0.18081252]
[1761292590384,0.01099999,110920.0,110910.0,0.18181252]
[1761292590960,0.19131012,110920.0,110910.0,0.18181252]
[1761292591375,0.01099999,110920.0,110910.0,0.18181252]
[1761292592082,0.02099998,110920.0,110910.0,0.18181252]
[1761292592303,0.20131011,110920.0,110910.0,0.24891154]
[1761292592504,0.02099998,110920.0,110910.0,0.24891154]
[1761292593669,0.85000258,110920.0,110910.0,0.00148613]
[1761292594075,0.85000258,110920.0,110910.0,0.0031867]
[1761292594431,0.85000258,110920.0,110910.0,0.0021867]
[1761292594633,0.86934234,110920.0,110910.0,0.0021867]
[1761292594795,0.86934234,110920.0,110910.0,0.0031867]
[1761292595003,0.86834234,110920.0,110910.0,0.0031867]
[1761292595421,0.86934234,110920.0,110910.0,0.0031867]
[1761292596739,0.56064987,110920.0,110910.0,0.0031867]
[1761292596919,0.95944316,110920.0,110910.0,0.0031867]
[1761292597237,1.14546523,110920.0,110910.0,0.0021867]
[1761292598268,1.14446523,110920.0,110910.0,0.0021867]
[1761292598560,1.14546523,110920.0,110910.0,0.0021867]
[1761292601533,0.98650523,110920.0,110910.0,0.0021867]
[1761292601739,0.83649095,110920.0,110910.0,0.0021867]
[1761292602454,0.67753095,110920.0,110910.0,0.0021867]
[1761292602692,0.04033974,110920.0,110910.0,0.81849428]
[1761292602901,0.001,110920.0,110910.0,1.11494027]
[1761292603134,0.01099999,110920.0,110910.0,1.11494027]
[1761292603338,0.01099999,110920.0,110910.0,1.09028066]
[1761292603758,0.001,110920.0,110910.0,1.09028066]
[1761292604901,0.01099999,110920.0,110910.0,0.78130638]
[1761292605792,0.001,110920.0,110910.0,1.43028066]
[1761292606209,0.001,110920.0,110910.0,1.4573298]
[1761292606855,0.001,110920.0,110910.0,1.4583298]
[1761292607439,0.001,110920.0,110910.0,1.4573298]
[1761292607654,0.00999999,110940.0,110930.0,0.38029387]
[1761292607868,0.00999999,110940.0,110930.0,0.83514619]
[1761292608262,0.01999998,110950.0,110940.0,0.18027762]
[1761292611022,0.02099998,110950.0,110940.0,0.18027762]
[1761292612947,0.02099998,110950.0,110940.0,0.19340913]
[1761292613579,0.02099998,110950.0,110940.0,0.18027762]
[1761292613845,0.02099998,110950.0,110940.0,0.2226073]
[1761292614079,0.02099998,110950.0,110940.0,0.22328735]
[1761292614328,0.51023563,110950.0,110940.0,0.18095767]
[1761292614557,0.20126135,110950.0,110940.0,0.18095767]
[1761292614983,0.51023563,110950.0,110940.0,0.18095767]
[1761292615648,0.20126135,110950.0,110940.0,0.18095767]
[1761292615873,0.51023563,110950.0,110940.0,0.18095767]
[1761292616508,0.20126135,110950.0,110940.0,0.18095767]
[1761292617463,0.51023563,110950.0,110940.0,0.00068005]
[1761292617687,0.85023563,110950.0,110940.0,0.00068005]
[1761292618635,0.94005464,110950.0,110940.0,0.00068005]
[1761292619063,0.96710773,110950.0,110940.0,0.00068005]
[1761292619491,1.00329001,110950.0,110940.0,0.00068005]
[1761292619714,1.41335387,110950.0,110940.0,0.00068005]
[1761292619943,1.45453714,110950.0,110940.0,0.00068005]
[1761292620166,0.86876759,110950.0,110940.0,0.00068005]
[1761292620382,1.39326187,110950.0,110940.0,0.00068005]
[1761292620601,0.72676532,110950.0,110940.0,0.00068005]
[1761292620834,1.03158245,110950.0,110940.0,0.00068005]
[1761292621067,1.18946245,110950.0,110940.0,0.00068005]
[1761292621285,1.19346245,110950.0,110940.0,0.00068005]
[1761292621738,1.28328146,110950.0,110940.0,0.00068005]
[1761292622165,1.19346245,110950.0,110940.0,0.00068005]
[1761292622380,0.72560817,110950.0,110940.0,0.00068005]
[1761292622587,1.19446245,110950.0,110940.0,0.00068005]
[1761292624308,0.88548817,110950.0,110940.0,0.00068005]
[1761292624517,1.19446245,110950.0,110940.0,0.00068005]
[1761292624726,0.85446245,110950.0,110940.0,0.00068005]
[1761292626930,1.21860834,110950.0,110940.0,0.00068005]
[1761292627153,1.30842735,110950.0,110940.0,0.00068005]
[1761292627585,1.21860834,110950.0,110940.0,0.00068005]
[1761292631007,1.25080286,110950.0,110940.0,0.00068005]
[1761292631371,1.55977714,110950.0,110940.0,0.00068005]
[1761292631553,1.53563125,110950.0,110940.0,0.00068005]
[1761292632189,1.58392304,110950.0,110940.0,0.00068005]
[1761292632390,1.67374205,110950.0,110940.0,0.00068005]
[1761292633551,1.05579349,110950.0,110940.0,0.00068005]
[1761292633767,1.36478135,110950.0,110940.0,0.00068005]
[1761292640293,1.42246135,110950.0,110940.0,0.00068005]
[1761292641095,1.11348707,110950.0,110940.0,0.00068005]
[1761292641296,1.42246135,110950.0,110940.0,0.00068005]
[1761292643370,1.39026683,110950.0,110940.0,0.00068005]
[1761292643994,1.16871334,110950.0,110940.0,0.00068005]
[1761292644416,1.2591557,110950.0,110940.0,0.00068005]
[1761292645049,1.27433206,110950.0,110940.0,0.00068005]
[1761292645249,1.28332081,110950.0,110940.0,0.00068005]
[1761292645654,0.97434653,110950.0,110940.0,0.00068005]
[1761292645858,1.28332081,110950.0,110940.0,0.00068005]
[1761292647268,1.2591557,110950.0,110940.0,0.00068005]
[1761292649078,0.95018142,110950.0,110940.0,0.00068005]
[1761292649279,1.2591557,110950.0,110940.0,0.00068005]
[1761292649490,1.2014757,110950.0,110940.0,0.00068005]
[1761292649991,0.89250142,110950.0,110940.0,0.00068005]
[1761292650209,1.2014757,110950.0,110940.0,0.00068005]
[1761292650959,1.0425957,110950.0,110940.0,0.00068005]
[1761292651137,1.2014757,110950.0,110940.0,0.00068005]
[1761292651345,1.22567988,110950.0,110940.0,0.00068005]
[1761292653130,0.9167056,110950.0,110940.0,0.00068005]
[1761292653353,1.22567988,110950.0,110940.0,0.00068005]
[1761292654095,1.24976749,110950.0,110940.0,0.00068005]
[1761292655903,0.94079321,110950.0,110940.0,0.00068005]
[1761292656126,1.24976749,110950.0,110940.0,0.00068005]
[1761292657654,1.21756091,110950.0,110940.0,0.00068005]
[1761292658619,1.05868091,110950.0,110940.0,0.00068005]
[1761292658841,1.52637563,110950.0,110940.0,0.00068005]
[1761292663468,1.36749563,110950.0,110940.0,0.00068005]
[1761292663675,1.52633563,110950.0,110940.0,0.00068005]
[1761292666737,1.21744113,110950.0,110940.0,0.00068005]
[1761292667782,0.90854663,110950.0,110940.0,0.00068005]
[1761292668001,1.05860113,110950.0,110940.0,0.00068005]
[1761292668221,0.89854664,110950.0,110940.0,0.00068005]
[1761292668881,1.20744114,110950.0,110940.0,0.00068005]
[1761292669062,1.04860114,110950.0,110940.0,0.00068005]
[1761292669235,1.07190679,110950.0,110940.0,0.00068005]
[1761292669442,1.23074679,110950.0,110940.0,0.00068005]
[1761292669754,0.74581875,110950.0,110940.0,0.00068005]
[1761292669960,1.21355325,110950.0,110940.0,0.00068005]
[1761292670158,1.16526146,110950.0,110940.0,0.00068005]
[1761292671199,0.85636696,110950.0,110940.0,0.00068005]
[1761292671348,1.16526146,110950.0,110940.0,0.00068005]
[1761292671936,0.85636696,110950.0,110940.0,0.00068005]
[1761292672138,1.16526146,110950.0,110940.0,0.00068005]
[1761292672489,1.18948487,110950.0,110940.0,0.00068005]
[1761292673522,1.16526146,110950.0,110940.0,0.00068005]
[1761292674215,1.18948596,110950.0,110940.0,0.00068005]
[1761292675629,0.88059146,110950.0,110940.0,0.00068005]
[1761292675834,1.18948596,110950.0,110940.0,0.00068005]
[1761292685067,1.03064596,110950.0,110940.0,0.00068005]
[1761292685266,1.18944596,110950.0,110940.0,0.00068005]
[1761292687187,1.17944597,110950.0,110940.0,0.00068005]
[1761292688436,1.17949595,110950.0,110940.0,0.00068005]
[1761292688999,0.71281269,110950.0,110940.0,0.00068005]
[1761292689210,0.71281269,110950.0,110940.0,0.48985217]
[1761292689212,0.3743741,110950.0,110940.0,0.48985217]
[1761292689418,0.55463547,110950.0,110940.0,0.48985217]
[1761292689596,0.55463547,110950.0,110940.0,0.57686672]
[1761292690135,0.55463547,110950.0,110940.0,0.26797222]
[1761292690339,0.55063547,110950.0,110940.0,0.57686672]
[1761292690546,0.53126136,110950.0,110940.0,0.57686672]
[1761292693397,0.01099999,110950.0,110940.0,0.57686672]
[1761292693603,0.01099999,110950.0,110940.0,0.26797222]
[1761292693838,0.01099999,110950.0,110940.0,0.57686672]
[1761292694370,0.01099999,110950.0,110940.0,0.26797222]
[1761292694775,0.01099999,110950.0,110940.0,0.57686672]
[1761292695631,0.36421764,110970.0,110940.0,0.88856568]
[1761292695840,0.08447407,110990.0,110980.0,0.59021264]
[1761292695841,0.0322944,110990.0,110980.0,0.59021264]
[1761292696071,0.02704967,111000.0,110990.0,0.38019641]
[1761292696361,0.3088945,111020.0,111000.0,0.1801782]
[1761292696603,0.15984,111010.0,111000.0,0.1801782]
[1761292696831,0.4687345,111020.0,111010.0,0.18016394]
[1761292697047,0.46888017,111020.0,111010.0,0.03603421]
[1761292697481,0.15998567,111020.0,111010.0,0.21619815]
[1761292697726,0.15998567,111020.0,111010.0,0.03603421]
[1761292698339,0.15998567,111020.0,111010.0,0.21619815]
[1761292698542,0.34013339,111020.0,111010.0,0.03603421]
[1761292699365,0.65102789,111020.0,111010.0,0.03603421]
[1761292699561,0.16198567,111020.0,111010.0,0.21619815]
[1761292699762,0.47088017,111020.0,111010.0,0.21619815]
[1761292700820,0.16198567,111020.0,111010.0,0.21619815]
[1761292702630,0.16202567,111020.0,111010.0,0.21619815]
[1761292702954,0.34217339,111020.0,111010.0,0.21619815]
[1761292704247,0.08534665,111030.0,111020.0,0.38014772]
[1761292704447,0.08534665,111030.0,111020.0,1.42448103]
[1761292704634,0.08259022,111030.0,111020.0,1.45667188]
[1761292705344,0.08259022,111030.0,111020.0,1.42548103]
[1761292705528,0.08359022,111030.0,111020.0,1.42548103]
[1761292706773,0.08359022,111030.0,111020.0,0.84892976]
[1761292707133,0.08359022,111030.0,111020.0,0.87595438]
[1761292712353,0.08359022,111030.0,111020.0,0.84892976]
[1761292715081,0.08120343,111030.0,111020.0,0.84892976]
[1761292716041,0.31107556,111080.0,111020.0,1.29388199]
[1761292716244,0.0004,111100.0,111090.0,0.9200342]
[1761292716455,0.0004,111100.0,111090.0,1.21273852]
[1761292716456,0.00088596,111100.0,111090.0,1.21273852]
[1761292716677,0.00088596,111100.0,111090.0,1.41273852]
[1761292716890,0.00088596,111100.0,111090.0,1.06260629]
[1761292717096,0.00088596,111100.0,111090.0,1.41273852]
[1761292718748,0.00188596,111100.0,111090.0,1.60691682]
[1761292719603,0.00188596,111100.0,111090.0,1.26691682]
[1761292720994,0.0004,111110.0,111100.0,0.180018]
[1761292721212,0.00044857,111110.0,111100.0,0.85298014]
[1761292721432,0.00044857,111110.0,111100.0,1.17497834]
[1761292722150,0.00044857,111110.0,111100.0,1.03497834]
[1761292722390,0.00044857,111110.0,111100.0,1.03997834]
[1761292722391,0.00144857,111110.0,111100.0,1.03997834]
[1761292726064,0.00144857,111110.0,111100.0,0.83997834]
[1761292727706,0.00144857,111110.0,111100.0,0.30266781]
[1761292727911,0.00144857,111110.0,111100.0,0.83997834]
[1761292729051,0.00144857,111110.0,111100.0,0.30266781]
[1761292729290,0.00144857,111110.0,111100.0,0.20173687]
[1761292731142,0.00144857,111110.0,111100.0,0.185018]
[1761292735238,0.00144857,111110.0,111100.0,0.20172365]
[1761292738069,0.00144857,111110.0,111100.0,0.82885319]
[1761292738909,0.00144857,111110.0,111100.0,0.29154266]
[1761292739698,0.00144857,111110.0,111100.0,0.82885319]
[1761292743654,0.00144857,111110.0,111100.0,0.29154266]
[1761292744098,0.00054835,111110.0,111100.0,0.29154266]
[1761292744550,0.00054835,111110.0,111100.0,0.20172365]
[1761292745876,0.00054835,111110.0,111100.0,0.82885319]
[1761292746557,0.00054835,111110.0,111100.0,0.81214754]
[1761292746760,0.00054835,111110.0,111100.0,0.27483701]
[1761292747937,0.00054835,111110.0,111100.0,0.185018]
[1761292748595,0.00054835,111110.0,111100.0,0.72232853]
[1761292750149,0.52909545,111130.0,111100.0,0.72232853]
[1761292750363,0.17998592,111120.0,111100.0,0.185018]
[1761292751192,0.1800018,111110.0,111100.0,0.181018]
[1761292751339,0.1800018,111110.0,111100.0,0.0190018]
[1761292751697,0.1800018,111110.0,111100.0,0.2020198]
[1761292752023,0.1800018,111110.0,111100.0,0.185018]
[1761292752384,0.1800018,111110.0,111100.0,0.184018]
[1761292752788,0.1800018,111110.0,111100.0,0.181018]
[1761292753095,0.1800018,111110.0,111100.0,0.185018]
[1761292753263,0.1810018,111110.0,111100.0,0.185018]
[1761292754448,0.001,111110.0,111100.0,0.185018]
[1761292754643,0.001,111110.0,111100.0,0.72232853]
[1761292754877,0.001,111110.0,111100.0,0.185018]
[1761292755208,0.1810018,111110.0,111100.0,0.005]
[1761292755497,0.5210018,111110.0,111100.0,0.005]
[1761292757218,0.54040329,111110.0,111100.0,0.005]
[1761292757438,0.54040329,111110.0,111100.0,0.001]
[1761292757439,0.53940003,111110.0,111100.0,0.001]
[1761292757923,0.53940003,111110.0,111100.0,0.003]
[1761292758127,0.62921904,111110.0,111100.0,0.002]
[1761292758589,0.62921904,111110.0,111100.0,0.003]
[1761292758766,1.16652957,111110.0,111100.0,0.003]
[1761292759102,0.62921904,111110.0,111100.0,0.002]
[1761292759692,0.1800342,111090.0,111080.0,0.18905185]
[1761292759926,0.1800342,111090.0,111080.0,0.18953781]
[1761292760758,0.1800342,111090.0,111080.0,0.00048596]
[1761292760973,0.66741321,111090.0,111080.0,0.00048596]
[1761292761176,1.22510358,111090.0,111080.0,0.00448596]
[1761292762148,1.22510358,111090.0,111080.0,0.00548596]
[1761292762712,1.22410358,111090.0,111080.0,0.00048596]
[1761292762900,1.22510358,111090.0,111080.0,0.00448596]
[1761292763415,1.22510358,111090.0,111080.0,0.00348596]
[1761292764302,1.22410358,111090.0,111080.0,0.00048596]
[1761292764465,1.26028586,111090.0,111080.0,0.00048596]
[1761292766074,1.28834702,111090.0,111080.0,0.00048596]
[1761292766276,1.26028586,111090.0,111080.0,0.00048596]
[1761292768773,0.72297533,111090.0,111080.0,0.00048596]
[1761292768903,1.26028586,111090.0,111080.0,0.00048596]
[1761292772256,1.24090602,111090.0,111080.0,0.00048596]
[1761292772464,1.26020527,111090.0,111080.0,0.00048596]
[1761292772847,1.33915326,111090.0,111080.0,0.00048596]
[1761292776598,0.72289474,111090.0,111080.0,0.00048596]
[1761292776795,1.33915326,111090.0,111080.0,0.00048596]
[1761292778128,1.28159326,111090.0,111080.0,0.00048596]
[1761292778332,1.50155326,111090.0,111080.0,0.00048596]
[1761292780762,1.50155126,111090.0,111080.0,0.00048596]
[1761292781411,1.28159126,111090.0,111080.0,0.00048596]
[1761292781591,1.50151126,111090.0,111080.0,0.00048596]
[1761292781795,1.44379126,111090.0,111080.0,0.00048596]
[1761292782090,1.50139126,111090.0,111080.0,0.00048596]
[1761292782929,1.50143126,111090.0,111080.0,0.00048596]
[1761292783286,1.44375126,111090.0,111080.0,0.00048596]
[1761292783489,1.50135126,111090.0,111080.0,0.00048596]
[1761292783691,1.55391802,111090.0,111080.0,0.00048596]
[1761292784283,1.50135126,111090.0,111080.0,0.00048596]
[1761292785367,1.83373447,111090.0,111080.0,0.00048596]
[1761292785973,1.86602887,111090.0,111080.0,0.00048596]
[1761292786628,1.84177392,111090.0,111080.0,0.00048596]
[1761292787881,1.84277392,111090.0,111080.0,0.00048596]
[1761292788312,1.84377392,111090.0,111080.0,0.00048596]
[1761292788454,1.89206571,111090.0,111080.0,0.00048596]
[1761292789691,1.89214022,111090.0,111080.0,0.00048596]
[1761292790265,1.85984582,111090.0,111080.0,0.00048596]
[1761292790709,0.71570104,111090.0,111080.0,0.00048596]
[1761292790930,1.85964582,111090.0,111080.0,0.00048596]
[1761292791342,1.64562145,111090.0,111080.0,0.00048596]
[1761292791556,1.51752739,111090.0,111080.0,0.00048596]
[1761292791753,1.29796739,111090.0,111080.0,0.00048596]
[1761292791954,1.51748739,111090.0,111080.0,0.00048596]
[1761292795285,1.51740739,111090.0,111080.0,0.00048596]
[1761292796946,1.29796739,111090.0,111080.0,0.00048596]
[1761292797156,1.54153231,111090.0,111080.0,0.00048596]
[1761292797366,1.51728739,111090.0,111080.0,0.00048596]
[1761292797945,1.54153252,111090.0,111080.0,0.00048596]
[1761292798366,1.51728739,111090.0,111080.0,0.00048596]
[1761292800027,0.84933444,111090.0,111080.0,0.00048596]
[1761292800246,1.55540997,111090.0,111080.0,0.00048596]
[1761292800460,1.86353823,111090.0,111080.0,0.00048596]
[1761292800684,1.86353823,111090.0,111030.0,0.18913637]
[1761292800685,0.18011209,111050.0,111040.0,0.01801152]
[1761292800906,0.64984035,111050.0,111040.0,0.01806009]
[1761292801324,0.66923715,111050.0,111040.0,0.01806009]
[1761292801530,0.66923715,111050.0,111040.0,0.03787925]
[1761292801963,0.36210889,111050.0,111040.0,0.04187925]
[1761292802172,0.67023715,111050.0,111040.0,0.04187925]
[1761292802448,0.65084035,111050.0,111040.0,0.04187925]
[1761292803044,0.65084035,111050.0,111040.0,0.22199452]
[1761292803273,0.65084035,111050.0,111040.0,0.203983]
[1761292803488,0.48924035,111050.0,111040.0,0.203983]
[1761292803711,0.65084035,111050.0,111040.0,0.203983]
[1761292803936,0.65084035,111050.0,111040.0,0.02386773]
[1761292804146,0.65084035,111050.0,111040.0,0.04187925]
[1761292806636,0.65084035,111050.0,111040.0,0.22199452]
[1761292806859,0.65084035,111050.0,111040.0,0.203983]
[1761292807080,0.16244,111050.0,111040.0,0.51211126]
[1761292807288,0.001,111050.0,111040.0,0.51211126]
[1761292807509,0.16244,111050.0,111040.0,0.51211126]
[1761292807739,0.34253905,111050.0,111040.0,0.51211126]
[1761292808150,0.16244,111050.0,111040.0,0.51211126]
[1761292808326,0.001,111050.0,111040.0,0.51211126]
[1761292808530,0.16244,111050.0,111040.0,0.51211126]
[1761292809100,0.001,111050.0,111040.0,0.203983]
[1761292809299,0.16236,111050.0,111040.0,0.51211126]
[1761292810088,0.001,111050.0,111040.0,0.51211126]
[1761292811059,0.18109905,111050.0,111040.0,0.02386773]
[1761292811277,0.18109905,111050.0,111040.0,0.22199452]
[1761292811521,0.001,111050.0,111040.0,0.51211126]
[1761292814279,0.001,111050.0,111040.0,0.91005853]
[1761292815179,0.65843967,111070.0,111050.0,0.1800843]
[1761292815385,0.35031141,111070.0,111060.0,0.19809111]
[1761292815970,0.69031141,111070.0,111060.0,0.19809111]
[1761292816753,0.52907141,111070.0,111060.0,0.19809111]
[1761292816954,0.69027141,111070.0,111060.0,0.19809111]
[1761292817357,0.99839967,111070.0,111060.0,0.19809111]
[1761292817566,0.99839967,111070.0,111060.0,0.21991027]
[1761292817781,0.99839967,111070.0,111060.0,0.20190199]
[1761292818390,0.69027141,111070.0,111060.0,0.20190199]
[1761292818914,0.99839967,111070.0,111060.0,0.20190199]
[1761292819075,0.99835967,111070.0,111060.0,0.20190199]
[1761292819282,0.69023141,111070.0,111060.0,0.20190199]
[1761292819911,0.69023141,111070.0,111060.0,0.02181916]
[1761292820108,0.52907141,111070.0,111060.0,0.02181916]
[1761292820326,0.99827967,111070.0,111060.0,0.21991027]
[1761292820533,0.69015141,111070.0,111060.0,0.20190199]
[1761292820732,0.99827967,111070.0,111060.0,0.20190199]
[1761292821134,0.34,111070.0,111060.0,0.51003025]
[1761292821352,0.68105041,111080.0,111070.0,0.18005824]
[1761292821550,0.70043018,111080.0,111070.0,0.22539188]
[1761292821751,1.00855844,111080.0,111070.0,0.20738522]
[1761292822128,0.70043018,111080.0,111070.0,0.20738522]
[1761292822556,1.00855844,111080.0,111070.0,0.20738522]
[1761292822778,1.00855844,111080.0,111070.0,0.02832698]
[1761292823397,0.84755844,111080.0,111070.0,0.02832698]
[1761292823828,0.53943018,111080.0,111070.0,0.02832698]
[1761292824058,1.00851844,111080.0,111070.0,0.02832698]
[1761292824271,0.98913867,111080.0,111070.0,0.02832698]
[1761292825846,0.68101041,111080.0,111070.0,0.02832698]
[1761292826137,0.98913867,111080.0,111070.0,0.02832698]
[1761292826344,0.68101041,111080.0,111070.0,0.02832698]
[1761292826785,0.98913867,111080.0,111070.0,0.02832698]
[1761292828004,0.68101041,111080.0,111070.0,0.02832698]
[1761292828199,0.98913867,111080.0,111070.0,0.02832698]
[1761292829176,0.68101041,111080.0,111070.0,0.02832698]
[1761292829378,0.64913867,111080.0,111070.0,0.02832698]
[1761292830208,0.34101041,111080.0,111070.0,0.02832698]
[1761292830438,0.64913867,111080.0,111070.0,0.02832698]
[1761292839300,0.34101041,111080.0,111070.0,0.02832698]
[1761292839506,0.66852572,111080.0,111070.0,0.02832698]
[1761292839705,0.97665398,111080.0,111070.0,0.02832698]
[1761292840985,0.66852572,111080.0,111070.0,0.02832698]
[1761292841444,1.71460125,111080.0,111070.0,0.001]
[1761292841672,1.7658686,111080.0,111070.0,0.001]
[1761292841890,1.7981935,111080.0,111070.0,0.001]
[1761292842594,0.18009905,111050.0,111040.0,0.18916882]
[1761292842800,0.34061905,111050.0,111040.0,0.18916882]
[1761292844040,0.34061905,111050.0,111040.0,0.19016882]
[1761292844244,0.64884618,111050.0,111040.0,0.00104857]
[1761292844454,0.66923352,111050.0,111040.0,0.00404857]
[1761292844858,0.6837321,111050.0,111040.0,0.00404857]
[1761292845006,0.66923352,111050.0,111040.0,0.00404857]
[1761292845412,0.64984618,111050.0,111040.0,0.00404857]
[1761292846217,1.09904425,111050.0,111040.0,0.00404857]
[1761292846407,1.15031871,111050.0,111040.0,0.00404857]
[1761292847304,1.14931871,111050.0,111040.0,4.857e-05]
[1761292847581,1.15031871,111050.0,111040.0,4.857e-05]
[1761292847832,0.84209158,111050.0,111040.0,4.857e-05]
[1761292848082,1.15031871,111050.0,111040.0,4.857e-05]
[1761292848278,1.15025566,111050.0,111040.0,4.857e-05]
[1761292848485,1.12601198,111050.0,111040.0,4.857e-05]
[1761292849238,1.15025566,111050.0,111040.0,4.857e-05]
[1761292849429,1.12601198,111050.0,111040.0,4.857e-05]
[1761292859465,0.81778485,111050.0,111040.0,4.857e-05]
[1761292859672,1.12601198,111050.0,111040.0,4.857e-05]
[1761292862238,0.81778485,111050.0,111040.0,4.857e-05]
[1761292862765,1.12601198,111050.0,111040.0,4.857e-05]
[1761292867392,1.20785566,111050.0,111040.0,4.857e-05]
[1761292868701,1.24018056,111050.0,111040.0,4.857e-05]
[1761292868895,1.55739644,111050.0,111040.0,4.857e-05]
[1761292869127,1.53315276,111050.0,111040.0,4.857e-05]
[1761292869339,1.54931594,111050.0,111040.0,4.857e-05]
[1761292869769,1.54831594,111050.0,111040.0,4.857e-05]
[1761292869977,1.63813495,111050.0,111040.0,4.857e-05]
[1761292870210,1.64013495,111050.0,111040.0,0.00090287]
[1761292870411,1.59164687,111050.0,111040.0,0.00090287]
[1761292871310,1.65629765,111050.0,111040.0,0.00090287]
[1761292871513,1.65729765,111050.0,111040.0,0.00090287]
[1761292871719,1.56747864,111050.0,111040.0,0.00090287]
[1761292872046,1.50282786,111050.0,111040.0,0.00090287]
[1761292872247,1.19460073,111050.0,111040.0,0.00090287]
[1761292872605,1.81457864,111050.0,111040.0,0.00090287]
[1761292874339,0.18016394,111010.0,111000.0,0.009009]
[1761292874566,0.3402512,111010.0,111000.0,0.0288225]
[1761292875625,0.35963411,111010.0,111000.0,0.0298225]
[1761292876421,0.36063411,111010.0,111000.0,0.0338225]
[1761292876828,0.36063411,111010.0,111000.0,0.0248135]
[1761292877444,0.3412512,111010.0,111000.0,0.0248135]
[1761292877643,0.36062684,111010.0,111000.0,0.0248135]
[1761292877851,0.66885397,111010.0,111000.0,0.0248135]
[1761292879875,0.36062684,111010.0,111000.0,0.0248135]
[1761292880517,0.3412512,111010.0,111000.0,0.0248135]
[1761292880802,0.36062291,111010.0,111000.0,0.0248135]
[1761292882415,0.3412512,111010.0,111000.0,0.0248135]
[1761292883365,0.3412512,111010.0,111000.0,0.24117596]
[1761292883987,0.3412512,111010.0,111000.0,0.06099578]
[1761292886524,0.3412512,111010.0,111000.0,0.24117596]
[1761292887390,0.3412512,111010.0,111000.0,0.06099578]
[1761292887568,0.36062416,111010.0,111000.0,0.06099578]
[1761292887881,0.66885129,111010.0,111000.0,0.0248135]
[1761292888960,0.36062416,111010.0,111000.0,0.0248135]
[1761292889206,0.66885129,111010.0,111000.0,0.0248135]
[1761292890431,0.36062416,111010.0,111000.0,0.0248135]
[1761292890638,0.66885129,111010.0,111000.0,0.0248135]
[1761292892471,0.36062416,111010.0,111000.0,0.0248135]
[1761292892723,0.66885129,111010.0,111000.0,0.0248135]
[1761292892955,0.36062416,111010.0,111000.0,0.0248135]
[1761292893231,0.66885129,111010.0,111000.0,0.0248135]
[1761292894145,0.66885129,111010.0,111000.0,0.06099578]
[1761292900737,0.02046022,111010.0,111000.0,0.15081479]
[1761292900957,0.02422449,111020.0,111010.0,0.38016394]
[1761292901171,0.05652381,111070.0,111040.0,0.21629755]
[1761292901354,0.0004859,111070.0,111060.0,0.21626511]
[1761292902030,0.48877965,111070.0,111060.0,0.03618228]
[1761292902232,0.48877965,111070.0,111060.0,0.01682876]
[1761292902446,0.65013965,111070.0,111060.0,0.01682876]
[1761292902658,0.64913965,111070.0,111060.0,0.01682876]
[1761292902871,0.48870206,111070.0,111060.0,0.01682876]
[1761292903098,0.65006206,111070.0,111060.0,0.01882876]
[1761292903295,0.65002206,111070.0,111060.0,0.01882876]
[1761292903495,0.65002206,111070.0,111060.0,0.002]
[1761292904039,0.18155252,111070.0,111060.0,0.002]